[Event "*** SCC Grand Prix: Titled Tuesday Blitz"]
[Site "Chess.com"]
[Date "2020.10.06"]
[Round "1"]
[White "Xeniya2005"]
[Black "Kezin_Roman"]
[Result "1-0"]
[WhiteElo "2391"]
[BlackElo "2703"]
[TimeControl "180+1"]
[EndTime "10:07:56 PDT"]
[Termination "Xeniya2005 won by checkmate"]

1. e4 {[%clk 0:03:00.1]} 1... c5 {[%clk 0:02:58.7]} 2. Be2 {[%clk 0:02:59.9]}
2... Nc6 {[%clk 0:02:54.8]} 3. f4 {[%clk 0:02:59.1]} 3... d5 {[%clk 0:02:54.3]}
4. d3 {[%clk 0:02:53.2]} 4... g6 {[%clk 0:02:53.9]} 5. Nf3 {[%clk 0:02:52.7]}
5... Bg7 {[%clk 0:02:53.6]} 6. e5 {[%clk 0:02:51.9]} 6... Nh6 {[%clk 0:02:52.8]}
7. O-O {[%clk 0:02:47.6]} 7... f6 {[%clk 0:02:52.1]} 8. exf6 {[%clk 0:02:46]}
8... exf6 {[%clk 0:02:50.7]} 9. Be3 {[%clk 0:02:42.7]} 9... d4 {[%clk 0:02:49]}
10. Bd2 {[%clk 0:02:35.7]} 10... O-O {[%clk 0:02:48.5]} 11. Na3 {[%clk
0:02:34.4]} 11... Nf5 {[%clk 0:02:45.8]} 12. Qe1 {[%clk 0:02:26.4]} 12... Re8
{[%clk 0:02:45]} 13. Qf2 {[%clk 0:02:25.9]} 13... Be6 {[%clk 0:02:43.8]} 14.
Rfe1 {[%clk 0:02:20.9]} 14... Qd7 {[%clk 0:02:39.9]} 15. c3 {[%clk 0:01:56.4]}
15... Rad8 {[%clk 0:02:38.2]} 16. Kh1 {[%clk 0:01:44]} 16... Bf7 {[%clk
0:02:14.2]} 17. Nc2 {[%clk 0:01:35.9]} 17... Re7 {[%clk 0:02:11.8]} 18. c4
{[%clk 0:01:26.1]} 18... Rde8 {[%clk 0:02:10.3]} 19. Bf1 {[%clk 0:01:24.4]}
19... h5 {[%clk 0:02:04.4]} 20. g3 {[%clk 0:01:11.8]} 20... b6 {[%clk
0:02:01.7]} 21. Bg2 {[%clk 0:01:06.9]} 21... Qc7 {[%clk 0:01:50]} 22. b4 {[%clk
0:00:54.4]} 22... cxb4 {[%clk 0:01:39.2]} 23. Nxb4 {[%clk 0:00:51.9]} 23... Nxb4
{[%clk 0:01:36.7]} 24. Bxb4 {[%clk 0:00:51.9]} 24... Rxe1+ {[%clk 0:01:37.6]}
25. Rxe1 {[%clk 0:00:51.3]} 25... Ne3 {[%clk 0:01:35.3]} 26. Nxd4 {[%clk
0:00:43.6]} 26... Nxg2 {[%clk 0:01:34.8]} 27. Rxe8+ {[%clk 0:00:43]} 27... Bxe8
{[%clk 0:01:35.6]} 28. Qxg2 {[%clk 0:00:29.6]} 28... f5 {[%clk 0:01:26.8]} 29.
Nf3 {[%clk 0:00:18.4]} 29... Bc6 {[%clk 0:01:25.2]} 30. Kg1 {[%clk 0:00:18.2]}
30... Qb7 {[%clk 0:01:24]} 31. Kf2 {[%clk 0:00:18]} 31... Bd4+ {[%clk
0:01:19.1]} 32. Ke2 {[%clk 0:00:18.3]} 32... a5 {[%clk 0:01:18.6]} 33. Bd6
{[%clk 0:00:16.9]} 33... Qd7 {[%clk 0:01:15.4]} 34. Be5 {[%clk 0:00:16.8]} 34...
Bc5 {[%clk 0:01:09.1]} 35. Qf1 {[%clk 0:00:15.4]} 35... b5 {[%clk 0:01:08.6]}
36. d4 {[%clk 0:00:15.2]} 36... Ba7 {[%clk 0:01:01.3]} 37. c5 {[%clk 0:00:12.9]}
37... b4 {[%clk 0:00:54.4]} 38. Ke3 {[%clk 0:00:13]} 38... Qd5 {[%clk
0:00:53.6]} 39. Ng5 {[%clk 0:00:12.5]} 39... Qxa2 {[%clk 0:00:51]} 40. Qa6
{[%clk 0:00:12.4]} 40... Qb3+ {[%clk 0:00:44]} 41. Ke2 {[%clk 0:00:12.6]} 41...
Qc2+ {[%clk 0:00:33.5]} 42. Ke3 {[%clk 0:00:12.9]} 42... Qc3+ {[%clk 0:00:17.4]}
43. Ke2 {[%clk 0:00:12.9]} 43... Qc2+ {[%clk 0:00:17.2]} 44. Ke3 {[%clk
0:00:13.1]} 44... Qc1+ {[%clk 0:00:18.1]} 45. Ke2 {[%clk 0:00:13.2]} 45... Bd7
{[%clk 0:00:13.5]} 46. Qxg6+ {[%clk 0:00:10.3]} 46... Kf8 {[%clk 0:00:12.4]} 47.
Qf7# {[%clk 0:00:10.6]} 1-0

[Event "*** SCC Grand Prix: Titled Tuesday Blitz"]
[Site "Chess.com"]
[Date "2020.10.06"]
[Round "1"]
[White "Margarita2907"]
[Black "IMJonathanCarlstedt"]
[Result "0-1"]
[WhiteElo "2206"]
[BlackElo "2539"]
[TimeControl "180+1"]
[EndTime "10:07:56 PDT"]
[Termination "IMJonathanCarlstedt won by resignation"]

1. e4 {[%clk 0:02:58.8]} 1... g6 {[%clk 0:03:00.9]} 2. Nf3 {[%clk 0:02:57.3]}
2... Bg7 {[%clk 0:03:01.1]} 3. d4 {[%clk 0:02:54.7]} 3... d6 {[%clk 0:03:00.2]}
4. Bd3 {[%clk 0:02:53.9]} 4... a6 {[%clk 0:02:58.7]} 5. O-O {[%clk 0:02:52.9]}
5... Bg4 {[%clk 0:02:53.6]} 6. c3 {[%clk 0:02:48.1]} 6... Nc6 {[%clk 0:02:52.7]}
7. h3 {[%clk 0:02:46.6]} 7... Bxf3 {[%clk 0:02:51.8]} 8. Qxf3 {[%clk 0:02:47.5]}
8... e5 {[%clk 0:02:52.1]} 9. d5 {[%clk 0:02:35.8]} 9... Nce7 {[%clk 0:02:51.4]}
10. Nd2 {[%clk 0:02:34.6]} 10... Qd7 {[%clk 0:02:47.1]} 11. a4 {[%clk
0:02:31.1]} 11... f5 {[%clk 0:02:45.6]} 12. exf5 {[%clk 0:02:26.1]} 12... gxf5
{[%clk 0:02:46.5]} 13. Qh5+ {[%clk 0:02:23]} 13... Kf8 {[%clk 0:02:42.5]} 14.
Nc4 {[%clk 0:01:59.9]} 14... Nf6 {[%clk 0:02:37]} 15. Qe2 {[%clk 0:01:53.4]}
15... Nfxd5 {[%clk 0:02:31.1]} 16. Bg5 {[%clk 0:01:27.8]} 16... Ng6 {[%clk
0:02:25.3]} 17. Qf3 {[%clk 0:01:12]} 17... Ndf4 {[%clk 0:01:51.8]} 18. Bxf4
{[%clk 0:01:07.1]} 18... Nxf4 {[%clk 0:01:52.7]} 19. Bc2 {[%clk 0:01:04.9]}
19... Rb8 {[%clk 0:01:38.8]} 20. Ne3 {[%clk 0:01:04.4]} 20... Qc6 {[%clk
0:01:31]} 21. Qd1 {[%clk 0:00:55.2]} 21... Rg8 {[%clk 0:01:16]} 22. Kh2 {[%clk
0:00:45.7]} 22... Bf6 {[%clk 0:00:55.3]} 23. Rg1 {[%clk 0:00:45.4]} 23... Rg6
{[%clk 0:00:44.7]} 24. Bxf5 {[%clk 0:00:43.6]} 24... Rh6 {[%clk 0:00:40]} 25. g3
{[%clk 0:00:33.6]} 25... Bg5 {[%clk 0:00:19.9]} 26. gxf4 {[%clk 0:00:21]} 26...
Bxf4+ {[%clk 0:00:19.5]} 27. Rg3 {[%clk 0:00:20.8]} 27... Rf6 {[%clk 0:00:19.3]}
28. Qg4 {[%clk 0:00:15.2]} 28... Ke7 {[%clk 0:00:18.3]} 29. Qg7+ {[%clk
0:00:13.9]} 29... Rf7 {[%clk 0:00:18.3]} 30. Qg4 {[%clk 0:00:13.3]} 30... Rbf8
{[%clk 0:00:17.7]} 31. Bd3 {[%clk 0:00:10.4]} 31... Bxg3+ {[%clk 0:00:16.6]} 32.
Qxg3 {[%clk 0:00:08.1]} 32... Rxf2+ {[%clk 0:00:16]} 33. Kg1 {[%clk 0:00:08.4]}
33... Qf3 {[%clk 0:00:15]} 34. Qxf3 {[%clk 0:00:05]} 34... R2xf3 {[%clk
0:00:15.1]} 35. Nf5+ {[%clk 0:00:04.4]} 35... R8xf5 {[%clk 0:00:14.7]} 36. Bxf5
{[%clk 0:00:05.3]} 36... Rxf5 {[%clk 0:00:15.2]} 37. Kg2 {[%clk 0:00:04.6]}
37... Ke6 {[%clk 0:00:15.2]} 38. Re1 {[%clk 0:00:04.6]} 38... d5 {[%clk
0:00:15.5]} 39. Kg3 {[%clk 0:00:05]} 39... e4 {[%clk 0:00:15.8]} 40. Kg4 {[%clk
0:00:05.5]} 40... Rf8 {[%clk 0:00:15.3]} 41. Kg5 {[%clk 0:00:04.6]} 41... Ke5
{[%clk 0:00:15.3]} 42. Kh6 {[%clk 0:00:03.9]} 42... Rf7 {[%clk 0:00:15.7]} 43.
Rg1 {[%clk 0:00:03.6]} 43... e3 {[%clk 0:00:15.7]} 44. h4 {[%clk 0:00:04.1]}
44... Ke4 {[%clk 0:00:15.8]} 45. h5 {[%clk 0:00:03.6]} 45... e2 {[%clk
0:00:15.6]} 46. Re1 {[%clk 0:00:02]} 46... Ke3 {[%clk 0:00:15.8]} 47. Kg5 {[%clk
0:00:02.5]} 47... Kd2 {[%clk 0:00:15.5]} 48. Rh1 {[%clk 0:00:02.9]} 48... e1=Q
{[%clk 0:00:15.2]} 49. Rxe1 {[%clk 0:00:03.4]} 49... Kxe1 {[%clk 0:00:16.1]} 50.
h6 {[%clk 0:00:03.7]} 50... Kd2 {[%clk 0:00:16.4]} 0-1

[Event "*** SCC Grand Prix: Titled Tuesday Blitz"]
[Site "Chess.com"]
[Date "2020.10.06"]
[Round "1"]
[White "SamuelGhimpu2003"]
[Black "maxsergej"]
[Result "1-0"]
[WhiteElo "2504"]
[BlackElo "2104"]
[TimeControl "180+1"]
[EndTime "10:07:56 PDT"]
[Termination "SamuelGhimpu2003 won on time"]

1. d4 {[%clk 0:03:00.6]} 1... Nf6 {[%clk 0:02:59.4]} 2. c4 {[%clk 0:02:59.5]}
2... e6 {[%clk 0:02:59.3]} 3. Nc3 {[%clk 0:02:58.7]} 3... Bb4 {[%clk 0:02:58.7]}
4. Qc2 {[%clk 0:02:58.7]} 4... d5 {[%clk 0:02:58.1]} 5. cxd5 {[%clk 0:02:57.8]}
5... Qxd5 {[%clk 0:02:57.7]} 6. Nf3 {[%clk 0:02:55.4]} 6... Qf5 {[%clk 0:02:57]}
7. Qxf5 {[%clk 0:02:56]} 7... exf5 {[%clk 0:02:56.6]} 8. a3 {[%clk 0:02:56.9]}
8... Be7 {[%clk 0:02:54.1]} 9. Bf4 {[%clk 0:02:55.9]} 9... c6 {[%clk 0:02:53.5]}
10. e3 {[%clk 0:02:56.1]} 10... Be6 {[%clk 0:02:52.4]} 11. h3 {[%clk 0:02:53.4]}
11... Nbd7 {[%clk 0:02:51.4]} 12. Bd3 {[%clk 0:02:42.1]} 12... g6 {[%clk
0:02:47.3]} 13. O-O {[%clk 0:02:41.6]} 13... Nd5 {[%clk 0:02:46.8]} 14. Bh2
{[%clk 0:02:39.9]} 14... O-O {[%clk 0:02:40.4]} 15. Rfc1 {[%clk 0:02:34]} 15...
Rfe8 {[%clk 0:02:32]} 16. Na4 {[%clk 0:02:28.3]} 16... N5b6 {[%clk 0:02:14.9]}
17. Nc5 {[%clk 0:02:09.4]} 17... Nxc5 {[%clk 0:02:02.3]} 18. dxc5 {[%clk
0:02:10.3]} 18... Nd5 {[%clk 0:02:02.4]} 19. b4 {[%clk 0:02:10.7]} 19... a6
{[%clk 0:02:01.4]} 20. Nd4 {[%clk 0:02:06.2]} 20... Bd7 {[%clk 0:01:58.6]} 21.
Rab1 {[%clk 0:01:58.6]} 21... Bf6 {[%clk 0:01:43.3]} 22. Nb3 {[%clk 0:01:42.8]}
22... Nc3 {[%clk 0:01:37.7]} 23. Rb2 {[%clk 0:01:38.1]} 23... Nb5 {[%clk
0:01:29.2]} 24. Ra2 {[%clk 0:01:35]} 24... Nc3 {[%clk 0:01:29]} 25. Rd2 {[%clk
0:01:34.8]} 25... Be6 {[%clk 0:01:22.5]} 26. Na5 {[%clk 0:01:34.9]} 26... Bc8
{[%clk 0:01:16.4]} 27. Bc4 {[%clk 0:01:17.7]} 27... Ne4 {[%clk 0:01:12]} 28. Rd3
{[%clk 0:01:14.9]} 28... Bd8 {[%clk 0:00:58.8]} 29. Nb3 {[%clk 0:00:54.4]} 29...
Be6 {[%clk 0:00:46.9]} 30. Bxe6 {[%clk 0:00:54]} 30... fxe6 {[%clk 0:00:45.1]}
31. f3 {[%clk 0:00:39.1]} 31... Nf6 {[%clk 0:00:44.7]} 32. Be5 {[%clk
0:00:36.9]} 32... Nd5 {[%clk 0:00:38.8]} 33. e4 {[%clk 0:00:34.2]} 33... Bf6
{[%clk 0:00:26]} 34. Bg3 {[%clk 0:00:15]} 34... fxe4 {[%clk 0:00:24.9]} 35. fxe4
{[%clk 0:00:14.8]} 35... Ne7 {[%clk 0:00:23.9]} 36. Rd7 {[%clk 0:00:15.3]} 36...
Rad8 {[%clk 0:00:21]} 37. Rcd1 {[%clk 0:00:15.1]} 37... Rxd7 {[%clk 0:00:19.4]}
38. Rxd7 {[%clk 0:00:16]} 38... Kf7 {[%clk 0:00:18.1]} 39. Rxb7 {[%clk
0:00:15.4]} 39... Rd8 {[%clk 0:00:18.5]} 40. Bd6 {[%clk 0:00:15.4]} 40... Ke8
{[%clk 0:00:17.8]} 41. e5 {[%clk 0:00:14.9]} 41... Bh4 {[%clk 0:00:15.1]} 42.
Nd4 {[%clk 0:00:14.3]} 42... Nd5 {[%clk 0:00:12]} 43. Nxe6 {[%clk 0:00:10.9]}
43... Rd7 {[%clk 0:00:10.7]} 44. Ng7+ {[%clk 0:00:06.1]} 44... Rxg7 {[%clk
0:00:01.4]} 45. Rxg7 {[%clk 0:00:07]} 1-0

[Event "*** SCC Grand Prix: Titled Tuesday Blitz"]
[Site "Chess.com"]
[Date "2020.10.06"]
[Round "1"]
[White "Sergienko_Sergey"]
[Black "grzechu96"]
[Result "0-1"]
[WhiteElo "2348"]
[BlackElo "2672"]
[TimeControl "180+1"]
[EndTime "10:07:58 PDT"]
[Termination "grzechu96 won by resignation"]

1. e4 {[%clk 0:02:57.7]} 1... c5 {[%clk 0:02:56.1]} 2. Nf3 {[%clk 0:02:56.6]}
2... a6 {[%clk 0:02:56.3]} 3. g3 {[%clk 0:02:54.3]} 3... b5 {[%clk 0:02:53.9]}
4. Bg2 {[%clk 0:02:53]} 4... Bb7 {[%clk 0:02:54.4]} 5. d3 {[%clk 0:02:52.8]}
5... e6 {[%clk 0:02:54.2]} 6. O-O {[%clk 0:02:52.3]} 6... d6 {[%clk 0:02:54.8]}
7. Nbd2 {[%clk 0:02:51.4]} 7... Nf6 {[%clk 0:02:52.7]} 8. Re1 {[%clk 0:02:50.4]}
8... Nbd7 {[%clk 0:02:53]} 9. c3 {[%clk 0:02:48.2]} 9... Be7 {[%clk 0:02:49.8]}
10. d4 {[%clk 0:02:41.4]} 10... O-O {[%clk 0:02:48.7]} 11. e5 {[%clk 0:02:27.9]}
11... Nd5 {[%clk 0:02:43.5]} 12. Ne4 {[%clk 0:02:15.2]} 12... dxe5 {[%clk
0:02:42.4]} 13. dxe5 {[%clk 0:02:14.2]} 13... Qc7 {[%clk 0:02:39.4]} 14. Bg5
{[%clk 0:01:48]} 14... Bxg5 {[%clk 0:02:28.7]} 15. Nexg5 {[%clk 0:01:43.8]}
15... h6 {[%clk 0:02:22.1]} 16. Ne4 {[%clk 0:01:42]} 16... Rad8 {[%clk
0:02:22.2]} 17. Qc2 {[%clk 0:01:37.2]} 17... c4 {[%clk 0:01:47.8]} 18. h4 {[%clk
0:01:09.6]} 18... Ne7 {[%clk 0:00:38]} 19. Re2 {[%clk 0:00:40.5]} 19... Ng6
{[%clk 0:00:32.4]} 20. h5 {[%clk 0:00:28.1]} 20... Ngxe5 {[%clk 0:00:32.3]} 21.
Nxe5 {[%clk 0:00:23]} 21... Nxe5 {[%clk 0:00:33.2]} 22. f4 {[%clk 0:00:10.4]}
22... Nd3 {[%clk 0:00:32.9]} 23. Rf1 {[%clk 0:00:10.3]} 23... Rd7 {[%clk
0:00:28.4]} 24. Kh2 {[%clk 0:00:08.3]} 24... f5 {[%clk 0:00:19.5]} 25. Nd2
{[%clk 0:00:07.1]} 25... Bxg2 {[%clk 0:00:19.5]} 26. Rxg2 {[%clk 0:00:07]} 26...
Re7 {[%clk 0:00:15.2]} 27. Nf3 {[%clk 0:00:07.1]} 27... e5 {[%clk 0:00:14.4]}
28. fxe5 {[%clk 0:00:06.6]} 28... Nxe5 {[%clk 0:00:15]} 29. Nxe5 {[%clk
0:00:06.6]} 29... Qxe5 {[%clk 0:00:15.9]} 30. Rf4 {[%clk 0:00:06.4]} 30... Ref7
{[%clk 0:00:06.1]} 31. Rgf2 {[%clk 0:00:06.3]} 31... Qe6 {[%clk 0:00:05.7]} 32.
Qd1 {[%clk 0:00:05.9]} 32... Qe7 {[%clk 0:00:05.1]} 33. Qf3 {[%clk 0:00:05.8]}
33... Qg5 {[%clk 0:00:05.3]} 34. Qe2 {[%clk 0:00:05.2]} 34... Kh8 {[%clk
0:00:05.5]} 35. Qf3 {[%clk 0:00:05.1]} 35... Rf6 {[%clk 0:00:05.6]} 36. Qe2
{[%clk 0:00:05]} 36... Kh7 {[%clk 0:00:05.7]} 37. Qf3 {[%clk 0:00:05]} 37... Kg8
{[%clk 0:00:06.1]} 38. Qe2 {[%clk 0:00:05]} 38... Kh8 {[%clk 0:00:06.7]} 39. Qf3
{[%clk 0:00:05.1]} 39... R6f7 {[%clk 0:00:07.2]} 40. Qe2 {[%clk 0:00:05.1]}
40... a5 {[%clk 0:00:06.5]} 41. Qf3 {[%clk 0:00:05.6]} 41... b4 {[%clk
0:00:06.6]} 42. cxb4 {[%clk 0:00:05.2]} 42... axb4 {[%clk 0:00:06.9]} 43. Qe2
{[%clk 0:00:05.1]} 43... c3 {[%clk 0:00:06.8]} 44. Rxb4 {[%clk 0:00:03.2]} 44...
c2 {[%clk 0:00:06.3]} 45. Rc4 {[%clk 0:00:02.5]} 45... c1=Q {[%clk 0:00:06]} 46.
Rxc1 {[%clk 0:00:01.9]} 46... Qxc1 {[%clk 0:00:06.9]} 0-1

[Event "*** SCC Grand Prix: Titled Tuesday Blitz"]
[Site "Chess.com"]
[Date "2020.10.06"]
[Round "1"]
[White "Gulkov_Igor"]
[Black "KuzubovYuriy"]
[Result "0-1"]
[WhiteElo "2461"]
[BlackElo "2931"]
[TimeControl "180+1"]
[EndTime "10:08:01 PDT"]
[Termination "KuzubovYuriy won by resignation"]

1. Nf3 {[%clk 0:02:56]} 1... d5 {[%clk 0:02:59.6]} 2. d4 {[%clk 0:02:55.3]} 2...
Nf6 {[%clk 0:02:59]} 3. c4 {[%clk 0:02:55.1]} 3... e6 {[%clk 0:02:59.2]} 4. Nc3
{[%clk 0:02:54.8]} 4... Nbd7 {[%clk 0:02:57.1]} 5. cxd5 {[%clk 0:02:54]} 5...
exd5 {[%clk 0:02:55.6]} 6. Bg5 {[%clk 0:02:53.2]} 6... c6 {[%clk 0:02:53.9]} 7.
e3 {[%clk 0:02:52.8]} 7... h6 {[%clk 0:02:53.9]} 8. Bh4 {[%clk 0:02:51.8]} 8...
g5 {[%clk 0:02:53.5]} 9. Bg3 {[%clk 0:02:51.1]} 9... Nh5 {[%clk 0:02:52.1]} 10.
Bd3 {[%clk 0:02:46]} 10... Nxg3 {[%clk 0:02:48]} 11. hxg3 {[%clk 0:02:45.1]}
11... Bg7 {[%clk 0:02:48.5]} 12. b4 {[%clk 0:02:30.6]} 12... Nb6 {[%clk
0:02:34.5]} 13. Qc2 {[%clk 0:02:18.4]} 13... a6 {[%clk 0:02:10.9]} 14. a4 {[%clk
0:01:57.3]} 14... Qe7 {[%clk 0:02:09.8]} 15. Rb1 {[%clk 0:01:56.5]} 15... g4
{[%clk 0:01:53.4]} 16. Ne5 {[%clk 0:01:43.3]} 16... Bxe5 {[%clk 0:01:52.2]} 17.
dxe5 {[%clk 0:01:42.8]} 17... Nd7 {[%clk 0:01:45]} 18. e4 {[%clk 0:01:35.8]}
18... Nxe5 {[%clk 0:01:39]} 19. O-O {[%clk 0:01:33.8]} 19... d4 {[%clk
0:01:30.5]} 20. Ne2 {[%clk 0:01:32.9]} 20... h5 {[%clk 0:01:19.5]} 21. Nxd4
{[%clk 0:01:22.3]} 21... h4 {[%clk 0:01:19]} 22. Nf5 {[%clk 0:01:12.6]} 22...
Bxf5 {[%clk 0:01:14.9]} 23. exf5 {[%clk 0:01:12.9]} 23... hxg3 {[%clk
0:01:05.8]} 24. fxg3 {[%clk 0:01:11.7]} 24... Qd6 {[%clk 0:00:55.3]} 25. Rbe1
{[%clk 0:00:50.1]} 25... O-O-O {[%clk 0:00:50.8]} 26. Be4 {[%clk 0:00:44.4]}
26... Qxb4 {[%clk 0:00:40.4]} 27. f6 {[%clk 0:00:37.3]} 27... Rd2 {[%clk
0:00:35.3]} 28. Bf5+ {[%clk 0:00:32.2]} 28... Kb8 {[%clk 0:00:34.5]} 29. Qe4
{[%clk 0:00:31.6]} 29... Qc5+ {[%clk 0:00:23.6]} 30. Qe3 {[%clk 0:00:31.5]}
30... Qxe3+ {[%clk 0:00:17.2]} 31. Rxe3 {[%clk 0:00:31]} 31... Nd7 {[%clk
0:00:13.9]} 32. Bxd7 {[%clk 0:00:27.5]} 32... Rxd7 {[%clk 0:00:13.6]} 33. Re7
{[%clk 0:00:27.5]} 33... Rhd8 {[%clk 0:00:13.1]} 34. Rf4 {[%clk 0:00:24.3]}
34... Rxe7 {[%clk 0:00:12.8]} 35. fxe7 {[%clk 0:00:23.9]} 35... Re8 {[%clk
0:00:13.4]} 36. Rxf7 {[%clk 0:00:24]} 36... Kc7 {[%clk 0:00:13.5]} 37. Rg7
{[%clk 0:00:20]} 37... b5 {[%clk 0:00:13.6]} 38. Kf2 {[%clk 0:00:15.2]} 38...
Kd6 {[%clk 0:00:12.3]} 39. Rg6+ {[%clk 0:00:13.9]} 39... Kd7 {[%clk 0:00:12.3]}
40. Rxg4 {[%clk 0:00:12.2]} 40... Rxe7 {[%clk 0:00:12.7]} 41. axb5 {[%clk
0:00:10.2]} 41... axb5 {[%clk 0:00:12.5]} 42. Rd4+ {[%clk 0:00:09.3]} 42... Ke6
{[%clk 0:00:12.3]} 43. g4 {[%clk 0:00:09]} 43... c5 {[%clk 0:00:12.3]} 44. Rd1
{[%clk 0:00:08.3]} 44... c4 {[%clk 0:00:12.2]} 45. Rb1 {[%clk 0:00:07.2]} 45...
Rb7 {[%clk 0:00:12]} 46. Ke3 {[%clk 0:00:07.7]} 46... Kd5 {[%clk 0:00:11.6]} 47.
g5 {[%clk 0:00:08]} 47... Kc5 {[%clk 0:00:11.8]} 48. g4 {[%clk 0:00:06.8]} 48...
b4 {[%clk 0:00:12.1]} 49. g6 {[%clk 0:00:06.1]} 49... b3 {[%clk 0:00:11.1]} 50.
g5 {[%clk 0:00:05.6]} 50... Rg7 {[%clk 0:00:11.1]} 51. Kf4 {[%clk 0:00:04.7]}
51... Kb4 {[%clk 0:00:10.7]} 0-1

[Event "*** SCC Grand Prix: Titled Tuesday Blitz"]
[Site "Chess.com"]
[Date "2020.10.06"]
[Round "1"]
[White "ZverevLev"]
[Black "Lagmantr"]
[Result "1/2-1/2"]
[WhiteElo "2333"]
[BlackElo "2641"]
[TimeControl "180+1"]
[EndTime "10:08:03 PDT"]
[Termination "Game drawn by repetition"]

1. e4 {[%clk 0:03:00.9]} 1... c6 {[%clk 0:02:59]} 2. d4 {[%clk 0:02:59.6]} 2...
d5 {[%clk 0:02:59.9]} 3. e5 {[%clk 0:02:57.8]} 3... c5 {[%clk 0:02:59.3]} 4.
dxc5 {[%clk 0:02:56.6]} 4... e6 {[%clk 0:02:59.6]} 5. a3 {[%clk 0:02:54.6]} 5...
Bxc5 {[%clk 0:03:00]} 6. b4 {[%clk 0:02:53.4]} 6... Be7 {[%clk 0:02:59.9]} 7.
Qg4 {[%clk 0:02:46.1]} 7... g5 {[%clk 0:02:56.4]} 8. Nf3 {[%clk 0:02:43.9]} 8...
h5 {[%clk 0:02:52.3]} 9. Qg3 {[%clk 0:02:42.1]} 9... g4 {[%clk 0:02:51.9]} 10.
Nd4 {[%clk 0:02:40.1]} 10... Nc6 {[%clk 0:02:34.8]} 11. Be3 {[%clk 0:02:32]}
11... Nxd4 {[%clk 0:02:21.4]} 12. Bxd4 {[%clk 0:02:30.6]} 12... Nh6 {[%clk
0:02:21.7]} 13. Bd3 {[%clk 0:02:28.3]} 13... Bh4 {[%clk 0:02:18.4]} 14. Qe3
{[%clk 0:02:24.7]} 14... Bg5 {[%clk 0:02:18.6]} 15. Qe2 {[%clk 0:02:23.8]} 15...
Nf5 {[%clk 0:02:13.3]} 16. Bxf5 {[%clk 0:02:21.6]} 16... exf5 {[%clk 0:02:14.2]}
17. e6 {[%clk 0:02:08.6]} 17... O-O {[%clk 0:02:09.3]} 18. Qe5 {[%clk
0:01:59.6]} 18... f6 {[%clk 0:01:56.7]} 19. Qxf5 {[%clk 0:01:58.2]} 19... Qe8
{[%clk 0:01:55.6]} 20. O-O {[%clk 0:01:51]} 20... Bxe6 {[%clk 0:01:54.4]} 21.
Qd3 {[%clk 0:01:50.6]} 21... Qf7 {[%clk 0:01:45.3]} 22. Nc3 {[%clk 0:01:48.8]}
22... Rfe8 {[%clk 0:01:43.3]} 23. Rae1 {[%clk 0:01:46]} 23... a6 {[%clk
0:01:31]} 24. Na4 {[%clk 0:01:42.5]} 24... Qh7 {[%clk 0:01:30.7]} 25. Qxh7+
{[%clk 0:01:14.6]} 25... Kxh7 {[%clk 0:01:31.6]} 26. Nc5 {[%clk 0:01:15.2]}
26... Bf5 {[%clk 0:01:30]} 27. Nxb7 {[%clk 0:01:12.2]} 27... Bxc2 {[%clk
0:01:20.5]} 28. Rxe8 {[%clk 0:01:10.2]} 28... Rxe8 {[%clk 0:01:21.4]} 29. f3
{[%clk 0:01:06.4]} 29... Bd3 {[%clk 0:01:17.1]} 30. Rd1 {[%clk 0:01:04]} 30...
Bc4 {[%clk 0:01:03.7]} 31. fxg4 {[%clk 0:01:00.3]} 31... hxg4 {[%clk 0:01:04.6]}
32. Nd6 {[%clk 0:01:00.4]} 32... Re2 {[%clk 0:01:04.5]} 33. a4 {[%clk
0:00:42.9]} 33... Bb3 {[%clk 0:00:56.4]} 34. Ra1 {[%clk 0:00:42.2]} 34... Rd2
{[%clk 0:00:55.4]} 35. Bc5 {[%clk 0:00:32.8]} 35... d4 {[%clk 0:00:52.5]} 36.
Ne4 {[%clk 0:00:31.6]} 36... Be3+ {[%clk 0:00:52.3]} 37. Kh1 {[%clk 0:00:29.2]}
37... Rc2 {[%clk 0:00:19.9]} 38. Nxf6+ {[%clk 0:00:24.5]} 38... Kg6 {[%clk
0:00:20.4]} 39. Nxg4 {[%clk 0:00:22.6]} 39... Bd5 {[%clk 0:00:21]} 40. Nxe3
{[%clk 0:00:21.8]} 40... dxe3 {[%clk 0:00:21.9]} 41. Rg1 {[%clk 0:00:11]} 41...
e2 {[%clk 0:00:21.2]} 42. Bf2 {[%clk 0:00:08.4]} 42... Rb2 {[%clk 0:00:21]} 43.
b5 {[%clk 0:00:05.5]} 43... axb5 {[%clk 0:00:19.3]} 44. axb5 {[%clk 0:00:06.4]}
44... Rxb5 {[%clk 0:00:19.6]} 45. Be1 {[%clk 0:00:07.3]} 45... Rb1 {[%clk
0:00:19.2]} 46. h3 {[%clk 0:00:08.2]} 46... Kf5 {[%clk 0:00:18.9]} 47. Kh2
{[%clk 0:00:07.5]} 47... Ke4 {[%clk 0:00:18.7]} 48. h4 {[%clk 0:00:07.3]} 48...
Rb3 {[%clk 0:00:16.3]} 49. h5 {[%clk 0:00:07.1]} 49... Kf5 {[%clk 0:00:15.7]}
50. g4+ {[%clk 0:00:07.3]} 50... Kg5 {[%clk 0:00:15.8]} 51. Bd2+ {[%clk
0:00:08.2]} 51... Kh4 {[%clk 0:00:15.9]} 52. Be1+ {[%clk 0:00:07.5]} 52... Kg5
{[%clk 0:00:16.2]} 53. Bd2+ {[%clk 0:00:07.4]} 53... Kh4 {[%clk 0:00:16.4]} 54.
Be1+ {[%clk 0:00:06.9]} 54... Kg5 {[%clk 0:00:17]} 1/2-1/2